bitfinex-derivatives/quotes_BTCF0:USTF0_20250620
["timestamp","ask_amount","ask_price","bid_price","bid_amount"]
[1750457029430,1.58341504,103540.0,103530.0,0.0048]
[1750457029728,1.64115637,103540.0,103530.0,0.0048]
[1750457029932,1.64115574,103540.0,103530.0,0.1979615]
[1750457030120,1.64115574,103540.0,103530.0,0.2623615]
[1750457030629,1.64115574,103540.0,103530.0,0.0692]
[1750457030830,1.66529574,103540.0,103530.0,0.0692]
[1750457032532,1.66529574,103540.0,103530.0,0.2623614]
[1750457033232,1.66529574,103540.0,103530.0,0.0692]
[1750457033433,1.66529574,103540.0,103530.0,0.0364]
[1750457035527,0.1931614,103530.0,103520.0,0.06306595]
[1750457035730,0.86810293,103530.0,103520.0,0.09356595]
[1750457035922,1.15575498,103530.0,103520.0,0.09396595]
[1750457036732,1.15575498,103530.0,103520.0,0.28714595]
[1750457037236,1.15575498,103530.0,103520.0,0.09796595]
[1750457037734,1.15575498,103530.0,103520.0,0.10096595]
[1750457038335,1.51655498,103530.0,103520.0,0.09896595]
[1750457038838,1.54755498,103530.0,103520.0,0.29214615]
[1750457039230,1.54755498,103530.0,103520.0,0.06836595]
[1750457039431,1.62434862,103530.0,103520.0,0.06436595]
[1750457040842,1.62434862,103530.0,103520.0,0.25754605]
[1750457042430,1.56134862,103530.0,103520.0,0.28984605]
[1750457046137,1.30495086,103530.0,103520.0,0.28984605]
[1750457046437,1.76316437,103530.0,103520.0,0.28984605]
[1750457048142,2.01956213,103530.0,103520.0,0.28984605]
[1750457051646,2.01956213,103530.0,103520.0,0.28984445]
[1750457052546,2.04370213,103530.0,103520.0,0.28984445]
[1750457053145,2.04370213,103530.0,103520.0,0.28984435]
[1750457053349,1.98595836,103530.0,103520.0,0.28984435]
[1750457053545,1.98595836,103530.0,103520.0,0.09666595]
[1750457053748,2.30495612,103530.0,103520.0,0.09666595]
[1750457053949,2.30495612,103530.0,103520.0,0.03386595]
[1750457054149,2.33615612,103530.0,103520.0,0.03386595]
[1750457054549,2.41329888,103530.0,103520.0,0.00236595]
[1750457054750,2.41329888,103530.0,103520.0,0.00196595]
[1750457054942,2.41329888,103530.0,103520.0,0.00236595]
[1750457059055,2.41329888,103530.0,103520.0,0.00136595]
[1750457059251,2.41429888,103530.0,103520.0,0.00136595]
[1750457060351,2.41729888,103530.0,103520.0,0.00136595]
[1750457060557,0.1931785,103520.0,103510.0,0.2259972]
[1750457060757,0.84277626,103520.0,103510.0,0.2251972]
[1750457060945,0.98028975,103520.0,103510.0,0.2255972]
[1750457062647,0.98028975,103520.0,103510.0,0.2898972]
[1750457062859,0.5549785,103520.0,103510.0,0.2898972]
[1750457063551,0.1941785,103520.0,103510.0,0.2898972]
[1750457063861,0.5549785,103520.0,103510.0,0.2898972]
[1750457064061,0.81137626,103520.0,103510.0,0.2898972]
[1750457065966,0.8691819,103520.0,103510.0,0.2898972]
[1750457066563,0.5083819,103520.0,103510.0,0.2898972]
[1750457066755,0.8691819,103520.0,103510.0,0.2898972]
[1750457067359,0.61278414,103520.0,103510.0,0.2898972]
[1750457067555,0.8691819,103520.0,103510.0,0.2898972]
[1750457067960,0.5083819,103520.0,103510.0,0.2898972]
[1750457068260,0.8691819,103520.0,103510.0,0.2898972]
[1750457069761,0.5083819,103520.0,103510.0,0.2898972]
[1750457070159,0.8691819,103520.0,103510.0,0.2898972]
[1750457071159,0.5325319,103520.0,103510.0,0.2898972]
[1750457072161,0.8933319,103520.0,103510.0,0.2898972]
[1750457072963,1.06335776,103520.0,103510.0,0.1935972]
[1750457073166,1.06335776,103520.0,103510.0,0.1931972]
[1750457073464,1.06335776,103520.0,103510.0,0.1935972]
[1750457073465,1.00085776,103520.0,103510.0,0.1935972]
[1750457073760,0.8933319,103520.0,103510.0,0.2575972]
[1750457074960,0.8933319,103520.0,103510.0,0.26177127]
[1750457076064,0.8933319,103520.0,103510.0,0.29497127]
[1750457076267,1.05836887,103520.0,103510.0,0.26387127]
[1750457076662,0.85444377,103520.0,103510.0,0.26387127]
[1750457076959,1.04762227,103520.0,103510.0,0.26387127]
[1750457081571,0.99956323,103520.0,103510.0,0.26387127]
[1750457086474,0.99956323,103520.0,103510.0,0.23097127]
[1750457086769,1.03186323,103520.0,103510.0,0.23097127]
[1750457087368,1.10894292,103520.0,103510.0,0.19777117]
[1750457087764,1.10894292,103520.0,103510.0,0.00417407]
[1750457087964,1.10894292,103520.0,103510.0,0.00457407]
[1750457089670,1.10894292,103520.0,103510.0,0.00417407]
[1750457089869,1.10894292,103520.0,103510.0,0.00457407]
[1750457090968,1.53186323,103520.0,103510.0,0.00457407]
[1750457091475,1.6089949,103520.0,103510.0,0.00457407]
[1750457092377,1.53186323,103520.0,103510.0,0.00457407]
[1750457092572,1.60898309,103520.0,103510.0,0.00457407]
[1750457092970,1.53186323,103520.0,103510.0,0.00457407]
[1750457093171,0.1931972,103510.0,103500.0,0.0008]
[1750457093370,1.5876335,103510.0,103500.0,0.0008]
[1750457093574,1.69322116,103510.0,103500.0,0.0008]
[1750457094377,1.83841464,103510.0,103500.0,0.0008]
[1750457094678,1.86027558,103510.0,103500.0,0.0018]
[1750457094876,0.1932157,103500.0,103490.0,0.00096623]
[1750457095081,0.1932344,103490.0,103480.0,0.290053]
[1750457095282,1.41539216,103490.0,103480.0,0.0631]
[1750457095579,1.58686135,103490.0,103480.0,0.0328]
[1750457095777,1.58686135,103490.0,103480.0,0.0324]
[1750457095979,1.58686135,103490.0,103480.0,0.0004]
[1750457096678,1.64461239,103490.0,103480.0,0.0004]
[1750457097079,1.64561239,103490.0,103480.0,0.0004]
[1750457097279,1.66976239,103490.0,103480.0,0.0327]
[1750457097974,1.66976239,103490.0,103480.0,0.0968]
[1750457098983,1.66976239,103490.0,103480.0,0.0327]
[1750457099186,1.66976239,103490.0,103470.0,0.2423829]
[1750457099187,0.1932532,103480.0,103470.0,0.3056862]
[1750457099486,0.87215096,103480.0,103470.0,0.2904684]
[1750457099677,0.87215096,103480.0,103470.0,0.2896684]
[1750457099876,0.87215096,103480.0,103470.0,0.2900684]
[1750457100285,0.97906118,103480.0,103470.0,0.0968]
[1750457100679,0.97906118,103480.0,103470.0,0.0978]
[1750457101285,0.97906118,103480.0,103470.0,0.2920719]
[1750457101985,0.97906118,103480.0,103470.0,0.0988]
[1750457102388,0.97906118,103480.0,103470.0,0.2920719]
[1750457103775,0.97906118,103480.0,103470.0,0.0988]
[1750457104082,0.97906118,103480.0,103470.0,0.0978]
[1750457104277,1.03781222,103480.0,103470.0,0.0645]
[1750457104477,1.03781222,103480.0,103470.0,0.0327]
[1750457104678,0.1932719,103470.0,103460.0,0.38588651]
[1750457104883,0.81046966,103470.0,103460.0,0.38668651]
[1750457105084,0.5540719,103470.0,103460.0,0.38668651]
[1750457105285,0.81046966,103470.0,103460.0,0.38668651]
[1750457105484,0.44966966,103470.0,103460.0,0.38668651]
[1750457105885,0.44966966,103470.0,103460.0,0.38768651]
[1750457106086,0.1932719,103470.0,103460.0,0.38768651]
[1750457106286,1.83146369,103470.0,103460.0,0.00276651]
[1750457106485,1.89696369,103470.0,103460.0,0.00276651]
[1750457106683,2.07203426,103470.0,103460.0,0.00296651]
[1750457106887,2.07203426,103470.0,103460.0,0.00336651]
[1750457106888,2.01445265,103470.0,103460.0,0.00336651]
[1750457107282,2.01445265,103470.0,103460.0,0.00296651]
[1750457107483,2.15878463,103470.0,103460.0,0.00336651]
[1750457107683,2.21833721,103470.0,103460.0,0.00236651]
[1750457108788,0.1932904,103460.0,103450.0,0.0008]
[1750457108988,0.1933091,103450.0,103440.0,0.0327]
[1750457109196,0.1933278,103440.0,103430.0,0.06286679]
[1750457109391,0.83302235,103440.0,103430.0,0.09396679]
[1750457109694,0.83302235,103440.0,103430.0,0.28731329]
[1750457109888,0.47222235,103440.0,103430.0,0.28731329]
[1750457110094,0.21582459,103440.0,103430.0,0.28811329]
[1750457110298,0.83302235,103440.0,103430.0,0.28831329]
[1750457110498,0.83302235,103440.0,103430.0,0.28871329]
[1750457110791,0.83302235,103440.0,103430.0,0.28771329]
[1750457110985,0.83402235,103440.0,103430.0,0.28771329]
[1750457111794,1.09042011,103440.0,103430.0,0.09436679]
[1750457111994,1.19380851,103440.0,103430.0,0.03146679]
[1750457112295,0.71271299,103440.0,103430.0,0.00096679]
[1750457112491,1.22550851,103440.0,103430.0,0.00136679]
[1750457113491,1.54305075,103440.0,103430.0,0.00136679]
[1750457113684,1.79944851,103440.0,103430.0,0.00136679]
[1750457113886,1.88910109,103440.0,103430.0,0.00136679]
[1750457114288,0.73856557,103440.0,103430.0,0.00096679]
[1750457114592,0.5551278,103440.0,103430.0,0.25951329]
[1750457115392,0.81152556,103440.0,103430.0,0.25951329]
[1750457115704,0.81252556,103440.0,103430.0,0.25951329]
[1750457116304,0.81552556,103440.0,103430.0,0.25951329]
[1750457116903,0.81252556,103440.0,103430.0,0.25951329]
[1750457117095,0.81152556,103440.0,103430.0,0.25951329]
[1750457119406,0.81152556,103440.0,103430.0,0.06616679]
[1750457119605,0.81152556,103440.0,103430.0,0.07034086]
[1750457120210,0.81152556,103440.0,103430.0,0.26368736]
[1750457129011,0.83568556,103440.0,103430.0,0.26368736]
[1750457130720,0.89323814,103440.0,103430.0,0.26368736]
[1750457131013,0.89323814,103440.0,103430.0,0.07034086]
[1750457131215,1.1496359,103440.0,103430.0,0.03714086]
[1750457131522,1.2147359,103440.0,103430.0,0.03714086]
[1750457132221,1.31693263,103440.0,103430.0,0.00554086]
[1750457133722,1.25938005,103440.0,103430.0,0.00554086]
[1750457134225,1.67483249,103440.0,103410.0,0.0032]
[1750457134413,0.86824765,103420.0,103410.0,0.1965838]
[1750457134726,0.86824765,103420.0,103410.0,0.2281838]
[1750457135028,0.90064765,103420.0,103410.0,0.2281838]
[1750457135719,0.93184765,103420.0,103410.0,0.2281838]
[1750457136027,0.93184765,103420.0,103410.0,0.2311838]
[1750457136323,0.93184765,103420.0,103410.0,0.0378]
[1750457136515,0.93184765,103420.0,103410.0,0.2311838]
[1750457137223,1.60142918,103420.0,103410.0,0.0062]
[1750457137421,1.67854772,103420.0,103410.0,0.0062]
[1750457137819,1.67854772,103420.0,103410.0,0.003]
[1750457138021,1.67854772,103420.0,103410.0,0.0034]
[1750457138420,1.60142918,103420.0,103410.0,0.0034]
[1750457138622,1.67854772,103420.0,103410.0,0.0034]
[1750457138833,1.68054772,103420.0,103410.0,0.0024]
[1750457139024,1.42414996,103420.0,103410.0,0.0024]
[1750457139218,1.34703142,103420.0,103410.0,0.0024]
[1750457139424,1.34803142,103420.0,103410.0,0.0004]
[1750457140332,1.49375142,103420.0,103410.0,0.1937838]
[1750457140627,2.10031142,103420.0,103410.0,0.0004]
[1750457141826,1.34803142,103420.0,103410.0,0.0004]
[1750457142024,2.10055142,103420.0,103410.0,0.0004]
[1750457142422,2.35694918,103420.0,103410.0,0.0004]
[1750457142930,0.193384,103410.0,103400.0,0.00176707]
[1750457143228,1.22014969,103410.0,103400.0,0.00176707]
[1750457143432,1.33084493,103410.0,103400.0,0.00176707]
[1750457143630,0.1934214,103390.0,103380.0,0.0016]
[1750457143835,0.1934401,103380.0,103370.0,0.33950475]
[1750457144032,0.81063786,103380.0,103370.0,0.41921422]
[1750457144330,0.11069524,103380.0,103370.0,1.47992231]
[1750457144530,1.52404143,103400.0,103390.0,0.1934214]
[1750457144832,1.57239383,103400.0,103390.0,0.1934214]
[1750457145034,1.57239383,103400.0,103390.0,0.2574214]
[1750457145733,1.59656383,103400.0,103390.0,0.2574214]
[1750457146425,1.59756383,103400.0,103390.0,0.2574214]
[1750457146632,1.59956383,103400.0,103390.0,0.2574214]
[1750457146835,1.67886499,103400.0,103390.0,0.2574214]
[1750457147327,1.62122652,103400.0,103390.0,0.2574214]
[1750457147727,1.76726652,103400.0,103390.0,0.2574214]
[1750457149633,1.51086876,103400.0,103390.0,0.2574214]
[1750457149824,0.1934212,103390.0,103380.0,0.2086709]
[1750457150025,0.81061896,103390.0,103380.0,0.434793]
[1750457150432,0.81061896,103390.0,103380.0,0.435593]
[1750457150733,0.81061896,103390.0,103380.0,0.3872347]
[1750457150935,0.87311896,103390.0,103380.0,0.3872347]
[1750457151138,0.87311896,103390.0,103380.0,0.2264221]
[1750457151429,0.90531896,103390.0,103380.0,0.2264221]
[1750457151633,0.19344,103380.0,103370.0,0.4200405]
[1750457151836,1.41751776,103380.0,103370.0,0.4532405]
[1750457152028,1.41751776,103380.0,103370.0,0.4524405]
[1750457152223,1.56327776,103380.0,103370.0,0.4524405]
[1750457152428,1.58294915,103380.0,103370.0,0.4528405]
[1750457152623,1.58294915,103380.0,103370.0,0.43559955]
[1750457152828,1.58294915,103380.0,103370.0,0.43719955]
[1750457153021,1.58294915,103380.0,103370.0,0.43759955]
[1750457153734,1.61384915,103380.0,103370.0,0.43759955]
[1750457154221,1.61384915,103380.0,103370.0,0.31027255]
[1750457154421,1.61384915,103380.0,103370.0,0.24517255]
[1750457154625,1.64504915,103380.0,103370.0,0.24417255]
[1750457154832,1.7560991,103380.0,103370.0,0.24417255]
[1750457155031,2.01249686,103380.0,103370.0,0.00236735]
[1750457155335,2.07013533,103380.0,103370.0,0.00196735]
[1750457155538,2.07013533,103380.0,103370.0,0.00236735]
[1750457155743,2.07013533,103380.0,103370.0,0.00196735]
[1750457155929,2.07013533,103380.0,103370.0,0.00236735]
[1750457156235,2.07113533,103380.0,103370.0,0.00136735]
[1750457156436,2.07313533,103380.0,103370.0,0.00136735]
[1750457158130,2.01549686,103380.0,103370.0,0.00136735]
[1750457158338,0.1934587,103370.0,103360.0,0.0008]
[1750457158550,0.90675646,103370.0,103360.0,0.0008]
[1750457158741,0.1934774,103360.0,103350.0,0.3829402]
[1750457159038,1.59545516,103360.0,103350.0,0.286993]
[1750457159231,1.62585516,103360.0,103350.0,0.286993]
[1750457159838,1.62585516,103360.0,103350.0,0.2869961]
[1750457160137,1.62585516,103360.0,103350.0,0.2861961]
[1750457160336,1.62585516,103360.0,103350.0,0.2865961]
[1750457161230,1.3694574,103360.0,103350.0,0.2865961]
[1750457161426,1.59545516,103360.0,103350.0,0.2885961]
[1750457161631,1.59545516,103360.0,103350.0,0.2915961]
[1750457161831,1.3061574,103360.0,103350.0,0.2915961]
[1750457162036,1.56255516,103360.0,103350.0,0.2915961]
[1750457163439,1.58673516,103360.0,103350.0,0.2915961]
[1750457163631,0.83485516,103360.0,103350.0,0.2915961]
[1750457163832,1.59037516,103360.0,103350.0,0.2915961]
[1750457164332,1.59037516,103360.0,103350.0,0.29577017]
[1750457164633,0.83485516,103360.0,103350.0,0.29577017]
[1750457164832,1.59017516,103360.0,103350.0,0.29577017]
[1750457165032,1.3337774,103360.0,103350.0,0.29577017]
[1750457165238,1.59017516,103360.0,103350.0,0.29577017]
[1750457166934,1.59017516,103360.0,103350.0,0.10227407]
[1750457167141,1.59017516,103360.0,103350.0,0.29577017]
[1750457168342,1.59017516,103360.0,103350.0,0.23397017]
[1750457168533,1.68417516,103360.0,103350.0,0.20307017]
[1750457168734,1.65127516,103360.0,103350.0,0.20307017]
[1750457168935,1.3948774,103360.0,103350.0,0.23547017]
[1750457169134,1.65127516,103360.0,103350.0,0.23547017]
[1750457169537,1.65127516,103360.0,103350.0,0.26797017]
[1750457171446,1.65127516,103360.0,103350.0,0.07447407]
[1750457172940,0.86525516,103360.0,103350.0,0.26797017]
[1750457173138,1.59285516,103360.0,103350.0,0.26797017]
[1750457173533,0.02418,103360.0,103350.0,0.52436793]
[1750457173745,0.3652974,103360.0,103350.0,0.52436793]
[1750457174242,0.3652974,103360.0,103350.0,0.26797017]
[1750457174441,0.17182,103360.0,103350.0,0.62877017]
[1750457174643,0.02418,103360.0,103350.0,0.62877017]
[1750457174943,0.2176574,103360.0,103350.0,0.62877017]
[1750457175540,0.2176574,103360.0,103350.0,0.26797017]
[1750457178455,0.02418,103360.0,103350.0,0.88516793]
[1750457180154,0.2176574,103360.0,103350.0,0.88516793]
[1750457180346,0.02418,103360.0,103350.0,0.88516793]
[1750457183647,0.2176574,103360.0,103350.0,0.62877017]
[1750457184055,0.2176574,103360.0,103350.0,0.64636716]
[1750457184557,0.2176574,103360.0,103350.0,0.54196492]
[1750457184751,0.02418,103360.0,103350.0,0.90276492]
[1750457185151,0.2176574,103360.0,103350.0,0.90276492]
[1750457185344,0.2176574,103360.0,103350.0,0.64636716]
[1750457185957,0.2176574,103360.0,103350.0,0.28556716]
[1750457186556,0.2176574,103360.0,103350.0,0.64636716]
[1750457187057,0.2176574,103360.0,103350.0,0.28556716]
[1750457187259,0.2176574,103360.0,103350.0,0.64636716]
[1750457188255,0.02418,103360.0,103350.0,0.64636716]
[1750457188452,0.02418,103360.0,103350.0,0.90276492]
[1750457188657,0.2176585,103360.0,103350.0,0.90276492]
[1750457188858,0.2176585,103360.0,103350.0,0.28556716]
[1750457189160,0.02418,103360.0,103350.0,0.28556716]
[1750457189363,0.2176589,103360.0,103350.0,0.28556716]
[1750457189664,0.2176589,103360.0,103350.0,0.54196492]
[1750457191866,1.72821281,103370.0,103360.0,0.1934789]
[1750457192054,1.72821281,103370.0,103360.0,0.2564789]
[1750457192567,1.47181505,103370.0,103360.0,0.2564789]
[1750457192754,1.72821281,103370.0,103360.0,0.2897789]
[1750457193467,1.72821281,103370.0,103360.0,0.2907789]
[1750457193973,1.11881281,103370.0,103360.0,0.2907789]
[1750457194966,0.86241505,103370.0,103360.0,0.2907789]
[1750457195166,1.11881281,103370.0,103360.0,0.2907789]
[1750457195767,1.11881281,103370.0,103360.0,0.29495297]
[1750457198266,0.86241505,103370.0,103360.0,0.19865297]
[1750457198464,1.14961281,103370.0,103360.0,0.19865297]
[1750457198769,0.89321505,103370.0,103360.0,0.19865297]
[1750457198965,0.69720595,103370.0,103360.0,0.19905297]
[1750457199167,1.73220371,103370.0,103360.0,0.19905297]
[1750457201674,1.47580595,103370.0,103360.0,0.19905297]
[1750457201867,1.73220371,103370.0,103360.0,0.19905297]
[1750457202271,1.47580595,103370.0,103360.0,0.19905297]
[1750457202576,1.73220371,103370.0,103360.0,0.19905297]
[1750457203467,1.70056371,103370.0,103360.0,0.19905297]
[1750457203764,1.70056371,103370.0,103360.0,0.26235297]
[1750457204376,1.88243012,103380.0,103370.0,0.1934602]
[1750457204671,0.1009,103380.0,103370.0,0.90435796]
[1750457205869,0.1009,103380.0,103370.0,1.34782996]
[1750457206073,0.90795664,103400.0,103390.0,0.1934228]
[1750457206276,0.65155888,103400.0,103390.0,0.1934228]
[1750457206468,0.63123337,103410.0,103390.0,0.0937]
[1750457206668,0.95201806,103420.0,103410.0,0.1933853]
[1750457206881,0.87337446,103420.0,103410.0,0.1933853]
[1750457207067,0.3608,103420.0,103410.0,0.2873853]
[1750457207376,0.81056446,103420.0,103410.0,0.2873853]
[1750457207576,0.61719776,103420.0,103410.0,0.2873853]
[1750457208079,0.5551666,103420.0,103410.0,0.54378306]
[1750457208274,0.1943666,103420.0,103410.0,0.2873853]
[1750457208468,0.001,103420.0,103410.0,0.2873853]
[1750457208976,0.001,103420.0,103410.0,0.6481853]
[1750457209183,0.25739776,103420.0,103410.0,0.6481853]
[1750457209674,0.001,103430.0,103420.0,0.1933667]
[1750457209879,0.001,103430.0,103420.0,0.27184546]
[1750457210078,0.001,103430.0,103420.0,0.88904322]
[1750457210272,0.001,103430.0,103420.0,0.52824322]
[1750457210471,0.82971323,103430.0,103420.0,0.21074546]
[1750457210671,0.29059776,103430.0,103420.0,0.21114546]
[1750457210874,0.25739776,103430.0,103420.0,0.21114546]
[1750457211177,0.25739776,103430.0,103420.0,0.27224546]
[1750457211377,0.25839776,103430.0,103420.0,0.27224546]
[1750457211873,0.45174576,103430.0,103420.0,0.27224546]
[1750457212274,0.195348,103430.0,103420.0,0.27224546]
[1750457212477,0.81254576,103430.0,103420.0,0.1937667]
[1750457212772,0.87664576,103430.0,103420.0,0.1933667]
[1750457213080,0.92491661,103430.0,103420.0,0.1937667]
[1750457215475,1.00201799,103430.0,103420.0,0.1937667]
[1750457216772,1.00201799,103430.0,103420.0,0.1933667]
[1750457216972,0.1933666,103420.0,103410.0,0.19835687]
[1750457217169,0.87186436,103420.0,103410.0,0.19755687]
[1750457217374,0.87186436,103420.0,103410.0,0.19795687]
[1750457217585,0.87186436,103420.0,103410.0,0.19795937]
[1750457218485,0.87286436,103420.0,103410.0,0.00457407]
[1750457218681,0.87286436,103420.0,103410.0,0.00417407]
[1750457218885,1.23041732,103420.0,103410.0,0.00457407]
[1750457219182,1.23041732,103420.0,103410.0,0.00417407]
[1750457219374,1.67380932,103420.0,103410.0,0.00417407]
[1750457219576,0.193404,103400.0,103390.0,0.0008]
[1750457219873,1.79268176,103400.0,103390.0,0.0008]
[1750457220078,1.95683993,103400.0,103390.0,0.0008]
[1750457220380,0.1934415,103380.0,103370.0,0.4011355]
[1750457220580,0.5542415,103380.0,103370.0,0.4347355]
[1750457220786,0.81063926,103380.0,103370.0,0.4339355]
[1750457221087,0.81063926,103380.0,103370.0,0.4343355]
[1750457221482,0.81163926,103380.0,103370.0,0.4393355]
[1750457222283,0.81163926,103380.0,103370.0,0.4433355]
[1750457222488,0.5552415,103380.0,103370.0,0.69973326]
[1750457222687,0.1944415,103380.0,103370.0,0.4433355]
[1750457222986,0.1934415,103380.0,103370.0,0.4343355]
[1750457223184,0.5542415,103380.0,103370.0,0.4363355]
[1750457223384,0.1934415,103380.0,103370.0,0.4363355]
[1750457225292,0.1934415,103380.0,103370.0,0.44050957]
[1750457226086,0.44983926,103380.0,103370.0,0.44050957]
[1750457226394,0.1934415,103380.0,103370.0,0.44050957]
[1750457227487,0.81063926,103380.0,103370.0,0.44050957]
[1750457227993,0.5542415,103380.0,103370.0,0.44050957]
[1750457228394,0.81063926,103380.0,103370.0,0.44050957]
[1750457228594,0.87333926,103380.0,103370.0,0.44050957]
[1750457229496,0.84143926,103380.0,103370.0,0.44050957]
[1750457229690,0.81063926,103380.0,103370.0,0.44050957]
[1750457229890,0.4674866,103380.0,103370.0,0.44050957]
[1750457230090,0.21108884,103380.0,103370.0,0.44050957]
[1750457230291,0.4674866,103380.0,103370.0,0.44050957]
[1750457230796,0.46555959,103380.0,103370.0,0.44050957]
[1750457231894,0.82635959,103380.0,103370.0,0.44050957]
[1750457232297,0.46555959,103380.0,103370.0,0.44050957]
[1750457235995,0.20916183,103380.0,103370.0,0.44050957]
[1750457236197,0.46555959,103380.0,103370.0,0.44050957]
[1750457236900,0.7926154,103390.0,103380.0,0.1934414]
[1750457237098,0.7620154,103390.0,103380.0,0.1934414]
[1750457237309,1.01841316,103390.0,103380.0,0.2569414]
[1750457237598,1.01841316,103390.0,103380.0,0.2241414]
[1750457237994,1.03491775,103390.0,103380.0,0.2241414]
[1750457239307,1.03791775,103390.0,103380.0,0.2241414]
[1750457240596,1.03791775,103390.0,103380.0,0.22831547]
[1750457240797,1.03791775,103390.0,103380.0,0.19761547]
[1750457242309,1.09529393,103390.0,103380.0,0.19761547]
[1750457242603,1.03791775,103390.0,103380.0,0.19761547]
[1750457243415,1.09551571,103390.0,103380.0,0.19761547]
[1750457244010,1.20474456,103390.0,103380.0,0.19761547]
[1750457244308,1.1471466,103390.0,103380.0,0.19761547]
[1750457244511,1.1471466,103390.0,103380.0,0.19801547]
[1750457245308,1.22394388,103390.0,103380.0,0.19801547]
[1750457246609,1.22394388,103390.0,103380.0,0.00457407]
[1750457247812,1.22394388,103390.0,103380.0,0.19801547]
[1750457248311,0.96754612,103390.0,103380.0,0.19801547]
[1750457248510,1.22394388,103390.0,103380.0,0.19801547]
[1750457248709,1.02114467,103390.0,103380.0,0.19801547]
[1750457248911,1.06950237,103390.0,103380.0,0.19801547]
[1750457249109,1.16622047,103390.0,103380.0,0.19801547]
[1750457250910,0.90982271,103390.0,103380.0,0.19801547]
[1750457251205,1.16622047,103390.0,103380.0,0.19801547]
[1750457254116,1.59050309,103390.0,103350.0,0.03140811]
[1750457254409,0.1935913,103300.0,103290.0,0.1936071]
[1750457254605,0.1935913,103300.0,103280.0,0.24298899]
[1750457254606,0.19361,103290.0,103280.0,0.24298899]
[1750457254801,1.14758071,103290.0,103280.0,0.00096819]
[1750457255009,1.3320451,103290.0,103280.0,0.00136819]
[1750457255208,1.25499336,103290.0,103280.0,0.00096819]
[1750457255403,1.33189327,103290.0,103280.0,0.00136819]
[1750457255602,1.33189327,103290.0,103280.0,0.19499689]
[1750457255603,1.25499336,103290.0,103280.0,0.19499689]
[1750457255809,1.87943336,103290.0,103280.0,0.19499689]
[1750457256008,1.87943336,103290.0,103280.0,0.00136819]
[1750457256309,1.36663784,103290.0,103280.0,0.00236819]
[1750457256513,1.423962,103290.0,103280.0,0.19599679]
[1750457256708,2.01250122,103290.0,103280.0,9e-08]
[1750457256910,1.95869182,103290.0,103280.0,0.00096009]
[1750457257616,1.95869182,103290.0,103260.0,0.1286295]
[1750457257617,0.1936474,103270.0,103260.0,0.3222839]
[1750457257816,0.4249,103280.0,103270.0,0.1936474]
[1750457258006,1.32487255,103280.0,103270.0,0.2254474]
[1750457258211,1.45030253,103280.0,103270.0,0.1936474]
[1750457258513,1.30508373,103280.0,103260.0,0.0484145]
[1750457258817,0.68347028,103270.0,103260.0,0.5320308]
[1750457259016,0.68347028,103270.0,103260.0,0.5324308]
[1750457259017,0.60902097,103270.0,103260.0,0.5324308]
[1750457259218,0.70634385,103270.0,103260.0,0.5324308]
[1750457259416,0.70634385,103270.0,103260.0,0.5656308]
[1750457259417,0.02287357,103270.0,103260.0,0.5656308]
[1750457259618,0.4365437,103290.0,103280.0,0.1936287]
[1750457259823,0.09856849,103290.0,103280.0,0.5544287]
[1750457260010,0.68347028,103320.0,103310.0,0.2903586]
[1750457260220,0.68347028,103320.0,103310.0,0.3387517]
[1750457260516,0.68347028,103320.0,103310.0,0.4021517]
[1750457261116,0.5543537,103320.0,103310.0,0.3537586]
[1750457261321,0.90872398,103320.0,103310.0,0.3551586]
[1750457261511,1.0072,103320.0,103310.0,0.3551586]
[1750457261820,0.43899304,103320.0,103310.0,0.3551586]
[1750457262713,0.07819304,103320.0,103310.0,0.67782888]
[1750457262915,0.5543349,103330.0,103320.0,0.1935537]
[1750457263121,0.5543349,103330.0,103320.0,0.2241537]
[1750457263319,0.65794915,103330.0,103320.0,0.2572537]
[1750457263520,0.5543349,103330.0,103320.0,0.2572537]
[1750457263820,0.3608,103330.0,103320.0,0.2572537]
[1750457264020,0.68347028,103330.0,103320.0,0.2572537]
[1750457264319,0.3608,103330.0,103320.0,0.2572537]
[1750457264622,1e-07,103330.0,103320.0,1.70695426]
[1750457264819,0.001,103340.0,103330.0,0.193535]
[1750457265016,1e-07,103340.0,103330.0,1.78110528]
[1750457265218,1e-07,103340.0,103330.0,2.22464928]
[1750457265921,1e-07,103340.0,103330.0,2.22664928]
[1750457267020,0.001,103370.0,103360.0,0.1934788]
[1750457267324,0.001,103370.0,103360.0,1.03986908]
[1750457267523,0.001,103370.0,103360.0,0.77316908]
[1750457267917,0.001,103370.0,103360.0,1.13396908]
[1750457268124,0.001,103370.0,103360.0,1.13496908]
[1750457270022,0.001,103370.0,103360.0,1.13914315]
[1750457270723,0.001,103370.0,103360.0,1.15647457]
[1750457270925,0.001,103370.0,103360.0,1.80147457]
[1750457271712,1e-07,103370.0,103360.0,2.12414485]
[1750457272028,1e-07,103370.0,103360.0,2.56763285]
[1750457274227,0.001,103400.0,103390.0,0.1934226]
[1750457274423,0.001,103400.0,103390.0,1.32221288]
[1750457274721,0.07697858,103400.0,103390.0,1.38551288]
[1750457274925,0.57783327,103400.0,103390.0,1.38551288]
[1750457275126,0.38442937,103400.0,103390.0,1.38551288]
[1750457275427,0.58083327,103400.0,103390.0,1.38551288]
[1750457275620,0.22003327,103400.0,103390.0,0.2567226]
[1750457275826,0.22003327,103400.0,103390.0,1.0615626]
[1750457276325,0.22003327,103400.0,103390.0,1.0619626]
[1750457276527,0.22303327,103400.0,103390.0,1.0619626]
[1750457276730,0.90650355,103400.0,103390.0,0.1938226]
[1750457276924,1.08069486,103400.0,103390.0,0.1938226]
[1750457277427,1.07769486,103400.0,103390.0,0.1938226]
[1750457277627,1.07469486,103400.0,103390.0,0.1948226]
[1750457277828,1.15096537,103400.0,103390.0,0.1948226]
[1750457278227,1.15096537,103400.0,103390.0,0.1853868]
[1750457279235,1.15096537,103400.0,103390.0,0.0014]
[1750457280331,1.15096537,103400.0,103390.0,0.001]
[1750457280530,2.36446375,103400.0,103360.0,0.34461239]
[1750457280725,0.87693038,103370.0,103360.0,0.19764507]
[1750457280925,0.89955975,103370.0,103360.0,0.19764507]
[1750457281134,0.96495975,103370.0,103360.0,0.19764507]
[1750457281428,0.96495975,103370.0,103360.0,0.19804507]
[1750457281725,0.96495975,103370.0,103360.0,0.20164507]
[1750457281931,0.1934975,103350.0,103340.0,0.2910477]
[1750457282130,1.26039715,103350.0,103340.0,0.2426709]
[1750457282336,1.29309715,103350.0,103340.0,0.2418709]
[1750457282525,1.29309715,103350.0,103340.0,0.2422709]
[1750457283335,1.29309715,103350.0,103340.0,0.2442709]
[1750457283536,1.29309715,103350.0,103340.0,0.0024]
[1750457283834,1.29309715,103350.0,103340.0,0.1959162]
[1750457284229,1.29409715,103350.0,103340.0,0.20009027]
[1750457284427,1.27146778,103350.0,103340.0,0.20009027]
[1750457284833,1.3824142,103350.0,103340.0,0.00657407]
[1750457285030,1.09174392,103350.0,103340.0,0.00657407]
[1750457285232,0.6199975,103350.0,103340.0,0.19969027]
[1750457285430,0.6199975,103350.0,103340.0,0.20009027]